lending/lending_fUSD_20250917
["ID","MTS","AMOUNT","RATE_DAILY","PERIOD"]
[385919741,1758133842222,-400.0,0.00024173,2]
[385919742,1758133842232,-400.0,0.00024173,2]
[385919743,1758133842243,-400.0,0.00024173,2]
[385919744,1758133842254,-400.0,0.00024173,2]
[385919745,1758133842263,-400.0,0.00024173,2]
[385919746,1758133842274,-400.0,0.00024173,2]
[385919747,1758133842285,-400.0,0.00024173,2]
[385919748,1758133842296,-598.11,0.00024173,2]
[385919749,1758133842309,-400.0,0.00024173,2]
[385919750,1758133842320,-400.0,0.00024173,2]
[385919751,1758133842331,-435.93,0.00024173,2]
[385919752,1758133842342,-818.22,0.00024173,2]
[385919753,1758133842354,-400.0,0.00024173,2]
[385919754,1758133842365,-400.0,0.00024173,2]
[385919756,1758133842375,-400.0,0.00024173,2]
[385919757,1758133842391,-400.0,0.00024173,2]
[385919758,1758133842402,-1630.39,0.00024173,2]
[385919759,1758133842412,-500.0,0.00024173,2]
[385919760,1758133842422,-550.79,0.00024173,2]
[385919761,1758133842433,-400.0,0.00024173,2]
[385919762,1758133842443,-494.65,0.00024173,2]
[385919763,1758133842453,-400.0,0.00024173,2]
[385919764,1758133842464,-400.0,0.00024173,2]
[385919765,1758133842475,-400.0,0.00024173,2]
[385919766,1758133842485,-400.0,0.00024173,2]
[385919767,1758133842495,-400.0,0.00024173,2]
[385919768,1758133842505,-400.0,0.00024173,2]
[385919770,1758133842516,-400.0,0.00024173,2]
[385919771,1758133842527,-402.53527778,0.00024173,2]
[385919772,1758133842537,-77.58128955,0.00024173,2]
[385919773,1758133842557,-322.41871045,0.00024173,2]
[385919775,1758133842566,-400.0,0.00024173,2]
[385919776,1758133842577,-1227.96,0.00024173,2]
[385919777,1758133842586,-269.76496512,0.00024173,2]
[385919779,1758133842595,-400.0,0.00024173,2]
[385919781,1758133842607,-400.0,0.00024173,2]
[385919782,1758133842616,-400.0,0.00024173,2]
[385919783,1758133842626,-400.0,0.00024173,2]
[385919784,1758133842638,-400.0,0.00024173,2]
[385919785,1758133842648,-518.01,0.00024173,2]
[385919786,1758133842659,-400.0,0.00024173,2]
[385919787,1758133842669,-400.0,0.00024173,2]
[385919789,1758133842679,-400.0,0.00024173,2]
[385919791,1758133842689,-508.38,0.00024173,2]
[385919792,1758133842699,-400.0,0.00024173,2]
[385919793,1758133842709,-400.0,0.00024173,2]
[385919794,1758133842718,-400.0,0.00024173,2]
[385919795,1758133842728,-400.0,0.00024173,2]
[385919796,1758133842738,-512.48019612,0.00024173,2]
[385919797,1758133842748,-644.12,0.00024173,2]
[385919799,1758133842757,-400.0,0.00024173,2]
[385919801,1758133842767,-400.0,0.00024173,2]
[385919802,1758133842778,-1104.63,0.00024173,2]
[385919803,1758133842788,-400.0,0.00024173,2]
[385919804,1758133842798,-400.0,0.00024173,2]
[385919805,1758133842808,-150.0,0.00024175,4]
[385919806,1758133842818,-3632.04486451,0.0002421,2]
[385919807,1758133842828,-1242.06598557,0.00024241,2]
[385919808,1758133842838,-150.0,0.00024299,4]
[385919809,1758133842848,-824.69,0.00024301,2]
[385919810,1758133842858,-155.0,0.0002431,2]
[385919811,1758133842868,-1077.63734681,0.00024311,10]
[385919812,1758133842877,-400.0,0.00024311,2]
[385919813,1758133842888,-400.0,0.00024311,2]
[385919814,1758133842899,-400.0,0.00024311,2]
[385919815,1758133842910,-400.0,0.00024311,2]
[385919816,1758133842921,-1271.59,0.00024311,2]
[385919817,1758133842930,-580.65,0.00024311,2]
[385919818,1758133842940,-512.12177142,0.00024311,2]
[385919819,1758133842952,-12.28822858,0.00024311,2]
[385919820,1758133842962,-402.94,0.00024311,2]
[385919821,1758133842972,-400.0,0.00024311,2]
[385919822,1758133842982,-400.0,0.00024311,2]
[385919823,1758133842992,-875.3,0.00024311,2]
[385919824,1758133843002,-546.54,0.00024311,2]
[385919825,1758133843012,-400.0,0.00024311,2]
[385919826,1758133843022,-507.3616406,0.00024311,2]
[385919828,1758133843034,-1136.54,0.00024311,2]
[385919830,1758133843044,-400.0,0.00024311,2]
[385919831,1758133843055,-400.0,0.00024311,2]
[385919832,1758133843065,-400.0,0.00024311,2]
[385919833,1758133843075,-400.0,0.00024311,2]
[385919834,1758133843086,-400.0,0.00024311,2]
[385919835,1758133843096,-500.0,0.00024311,2]
[385919836,1758133843110,-1598.2,0.00024311,2]
[385919837,1758133843126,-400.0,0.00024311,2]
[385919838,1758133843136,-400.0,0.00024311,2]
[385919839,1758133843146,-405.37,0.00024311,2]
[385919840,1758133843156,-355.66098082,0.00024311,2]
[385919841,1758133843214,-44.33901918,0.00024311,2]
[385919842,1758133843224,-400.0,0.00024311,2]
[385919843,1758133843235,-400.0,0.00024311,2]
[385919844,1758133843245,-400.0,0.00024311,2]
[385919845,1758133843255,-400.0,0.00024311,2]
[385919846,1758133843265,-400.0,0.00024311,2]
[385919847,1758133843275,-400.0,0.00024311,2]
[385919848,1758133843289,-400.0,0.00024311,2]
[385919849,1758133843299,-400.0,0.00024311,2]
[385919850,1758133843313,-400.0,0.00024311,2]
[385919851,1758133843323,-400.0,0.00024311,2]
[385919852,1758133843334,-400.0,0.00024311,2]
[385919853,1758133843344,-627.04,0.00024311,2]
[385919854,1758133843354,-400.0,0.00024311,2]
[385919855,1758133843364,-565.76,0.00024311,2]
[385919856,1758133843376,-400.0,0.00024311,2]
[385919857,1758133843386,-444.67,0.00024311,2]
[385919858,1758133843397,-400.0,0.00024311,2]
[385919860,1758133843408,-400.0,0.00024311,2]
[385919862,1758133843418,-400.0,0.00024311,2]
[385919863,1758133843428,-1557.2,0.00024311,2]
[385919864,1758133843438,-534.49,0.00024311,2]
[385919865,1758133843448,-500.0,0.00024311,2]
[385919866,1758133843458,-400.0,0.00024311,2]
[385919867,1758133843469,-400.0,0.00024311,2]
[385919868,1758133843480,-3580.05,0.00024311,2]
[385919869,1758133843492,-400.49,0.00024311,2]
[385919870,1758133843504,-400.0,0.00024311,2]
[385919871,1758133843515,-400.0,0.00024311,2]
[385919872,1758133843526,-400.0,0.00024311,2]
[385919873,1758133843537,-400.0,0.00024311,2]
[385919874,1758133843547,-400.0,0.00024311,2]
[385919875,1758133843558,-400.0,0.00024311,2]
[385919876,1758133843568,-2913.97,0.00024311,2]
[385919877,1758133843578,-400.0,0.00024311,2]
[385919878,1758133843589,-500.0,0.00024311,2]
[385919879,1758133843602,-400.0,0.00024311,2]
[385919880,1758133843613,-400.0,0.00024311,2]
[385919881,1758133843624,-400.0,0.00024311,2]
[385919882,1758133843634,-400.0,0.00024311,2]
[385919883,1758133843644,-400.0,0.00024311,2]
[385919884,1758133843655,-400.0,0.00024311,2]
[385919885,1758133843667,-400.0,0.00024311,2]
[385919886,1758133843677,-400.0,0.00024311,2]
[385919887,1758133843688,-400.0,0.00024311,2]
[385919888,1758133843698,-438.95,0.00024311,2]
[385919889,1758133843708,-400.0,0.00024311,2]
[385919890,1758133843719,-400.0,0.00024311,2]
[385919891,1758133843729,-400.0,0.00024311,2]
[385919892,1758133843740,-400.0,0.00024311,2]
[385919893,1758133843751,-400.0,0.00024311,2]
[385919894,1758133843761,-400.0,0.00024311,2]
[385919895,1758133843772,-683.24,0.00024311,2]
[385919896,1758133843785,-400.0,0.00024311,2]
[385919897,1758133843796,-400.0,0.00024311,2]
[385919898,1758133843807,-400.0,0.00024311,2]
[385919899,1758133843818,-400.0,0.00024311,2]
[385919900,1758133843829,-500.0,0.00024311,2]
[385919901,1758133843840,-400.0,0.00024311,2]
[385919902,1758133843850,-400.0,0.00024311,2]
[385919903,1758133843862,-400.0,0.00024311,2]
[385919904,1758133843872,-730.04,0.00024311,2]
[385919905,1758133843883,-400.0,0.00024311,2]
[385919906,1758133843894,-400.0,0.00024311,2]
[385919907,1758133843904,-400.0,0.00024311,2]
[385919908,1758133843914,-400.0,0.00024311,2]
[385919909,1758133843924,-400.0,0.00024311,2]
[385919910,1758133843935,-400.0,0.00024311,2]
[385919911,1758133843945,-676.75,0.00024311,2]
[385919912,1758133843955,-400.0,0.00024311,2]
[385919913,1758133843966,-272.42009037,0.00024311,2]
[385919914,1758133843976,-400.0,0.00024311,2]
[385919915,1758133843986,-400.0,0.00024311,2]
[385919916,1758133843997,-400.0,0.00024311,2]
[385919917,1758133844008,-400.0,0.00024311,2]
[385919918,1758133844018,-400.0,0.00024311,2]
[385919919,1758133844030,-876.39,0.00024311,2]
[385919920,1758133844040,-400.0,0.00024311,2]
[385919921,1758133844051,-400.0,0.00024311,2]
[385919922,1758133844061,-428.07,0.00024311,2]
[385919923,1758133844073,-400.0,0.00024311,2]
[385919924,1758133844083,-400.0,0.00024311,2]
[385919925,1758133844093,-400.0,0.00024311,2]
[385919926,1758133844103,-459.27,0.00024311,2]
[385919927,1758133844113,-400.0,0.00024311,2]
[385919928,1758133844123,-490.06,0.00024311,2]
[385919929,1758133844134,-400.0,0.00024311,2]
[385919930,1758133844144,-400.0,0.00024311,2]
[385919931,1758133844155,-460.69,0.00024311,2]
[385919932,1758133844166,-400.0,0.00024311,2]
[385919933,1758133844176,-401.47857508,0.00024311,2]
[385919934,1758133844186,-400.0,0.00024311,2]
[385919935,1758133844196,-400.0,0.00024311,2]
[385919936,1758133844207,-445.14,0.00024311,2]
[385919937,1758133844218,-400.0,0.00024311,2]
[385919938,1758133844230,-500.0,0.00024311,2]
[385919939,1758133844242,-500.0,0.00024311,2]
[385919940,1758133844253,-400.0,0.00024311,2]
[385919941,1758133844264,-400.0,0.00024311,2]
[385919942,1758133844276,-500.0,0.00024311,2]
[385919943,1758133844287,-500.0,0.00024311,2]
[385919944,1758133844298,-400.0,0.00024311,2]
[385919945,1758133844312,-495.86,0.00024311,2]
[385919946,1758133844322,-643.66,0.00024311,2]
[385919947,1758133844332,-400.0,0.00024311,2]
[385919948,1758133844343,-453.64,0.00024311,2]
[385919949,1758133844354,-400.0,0.00024311,2]
[385919950,1758133844364,-574.95,0.00024311,2]
[385919951,1758133844374,-3225.15,0.00024311,2]
[385919952,1758133844385,-400.0,0.00024311,2]
[385919953,1758133844395,-400.0,0.00024311,2]
[385919954,1758133844405,-400.0,0.00024311,2]
[385919955,1758133844416,-472.42,0.00024311,2]
[385919956,1758133844427,-462.81,0.00024311,2]
[385919957,1758133844437,-400.0,0.00024311,2]
[385919958,1758133844447,-490.49,0.00024311,2]
[385919959,1758133844457,-400.0,0.00024311,2]
[385919960,1758133844467,-400.0,0.00024311,2]
[385919961,1758133844477,-400.0,0.00024311,2]
[385919962,1758133844487,-400.0,0.00024311,2]
[385919963,1758133844498,-400.0,0.00024311,2]
[385919964,1758133844508,-400.0,0.00024311,2]
[385919965,1758133844518,-400.0,0.00024311,2]
[385919966,1758133844528,-400.0,0.00024311,2]
[385919967,1758133844539,-400.0,0.00024311,2]
[385919968,1758133844549,-682.01,0.00024311,2]
[385919969,1758133844558,-400.0,0.00024311,2]
[385919970,1758133844569,-823.05,0.00024311,2]
[385919971,1758133844580,-400.0,0.00024311,2]
[385919972,1758133844592,-416.62,0.00024311,2]
[385919973,1758133844604,-400.0,0.00024311,2]
[385919974,1758133844614,-458.57,0.00024311,2]
[385919975,1758133844624,-400.0,0.00024311,2]
[385919976,1758133844634,-400.0,0.00024311,2]
[385919977,1758133844643,-500.0,0.00024311,2]
[385919978,1758133844653,-797.7,0.00024311,2]
[385919979,1758133844663,-400.0,0.00024311,2]
[385919980,1758133844675,-400.0,0.00024311,2]
[385919981,1758133844687,-463.63,0.00024311,2]
[385919982,1758133844697,-472.63,0.00024311,2]
[385919983,1758133844707,-400.0,0.00024311,2]
[385919984,1758133844717,-400.0,0.00024311,2]
[385919985,1758133844727,-400.0,0.00024311,2]
[385919986,1758133844737,-400.0,0.00024311,2]
[385919987,1758133844747,-515.04,0.00024311,2]
[385919988,1758133844757,-523.9,0.00024311,2]
[385919989,1758133844768,-521.59,0.00024311,2]
[385919990,1758133844778,-400.0,0.00024311,2]
[385919991,1758133844788,-400.0,0.00024311,2]
[385919992,1758133844798,-400.0,0.00024311,2]
[385919993,1758133844808,-400.0,0.00024311,2]
[385919994,1758133844818,-418.31,0.00024311,2]
[385919995,1758133844828,-400.0,0.00024311,2]
[385919996,1758133844837,-831.57,0.00024312,2]
[385919997,1758133844847,-1660.86,0.00024312,2]
[385919998,1758133844857,-1000.0,0.00024312,2]
[385919999,1758133844867,-1032.08,0.00024312,2]
[385920000,1758133844877,-843.65,0.00024312,2]
[385920001,1758133844887,-516.31,0.00024312,2]
[385920002,1758133844897,-921.08,0.00024312,2]
[385920003,1758133844907,-932.75,0.00024312,2]
[385920004,1758133844917,-423.36,0.00024312,2]
[385920005,1758133844927,-1060.76,0.00024312,2]
[385920006,1758133844937,-515.21,0.00024312,2]
[385920007,1758133844948,-515.21,0.00024312,2]
[385920008,1758133844958,-553.95,0.00024312,2]
[385920009,1758133844968,-400.0,0.00024312,2]
[385920010,1758133844977,-500.0,0.00024312,2]
[385920011,1758133844986,-400.0,0.00024312,2]
[385920012,1758133844996,-681.37,0.00024312,2]
[385920013,1758133845007,-755.33,0.00024312,2]
[385920014,1758133845017,-661.0,0.00024312,2]
[385920015,1758133845027,-859.7,0.00024312,2]
[385920016,1758133845038,-400.0,0.00024312,2]
[385920017,1758133845047,-713.46,0.00024312,2]
[385920018,1758133845057,-400.0,0.00024312,2]
[385920019,1758133845253,-274.0,0.0002436,2]
[385920020,1758133845283,-1242.06598557,0.00024409,2]
[385920021,1758133845294,-168.0,0.00024438,2]
[385920022,1758133845305,-150.0,0.0002444,4]
[385920023,1758133845315,-400.0,0.00024447,2]
[385920024,1758133845330,-400.0,0.00024447,2]
[385920025,1758133845340,-400.0,0.00024447,2]
[385920026,1758133845349,-400.0,0.00024447,2]
[385920027,1758133845359,-464.35,0.00024447,2]
[385920028,1758133845371,-736.66,0.00024447,2]
[385920029,1758133845380,-515.89,0.00024447,2]
[385920030,1758133845390,-400.0,0.00024447,2]
[385920032,1758133845400,-627.75,0.00024447,2]
[385920033,1758133845410,-812.86,0.00024447,2]
[385920034,1758133845419,-549.98,0.00024447,2]
[385920035,1758133845429,-400.0,0.00024447,2]
[385920036,1758133845438,-400.0,0.00024447,2]
[385920037,1758133845447,-449.02,0.00024447,2]
[385920038,1758133845457,-400.0,0.00024447,2]
[385920039,1758133845466,-400.0,0.00024447,2]
[385920040,1758133845476,-428.14,0.00024447,2]
[385920041,1758133845486,-400.0,0.00024447,2]
[385920042,1758133845497,-531.64,0.00024447,2]
[385920043,1758133845507,-479.37,0.00024447,2]
[385920045,1758133845516,-400.0,0.00024447,2]
[385920046,1758133845526,-400.0,0.00024447,2]
[385920047,1758133845536,-400.0,0.00024447,2]
[385920048,1758133845546,-554.75,0.00024447,2]
[385920049,1758133845555,-400.0,0.00024447,2]
[385920050,1758133845564,-400.0,0.00024447,2]
[385920051,1758133845574,-400.0,0.00024447,2]
[385920052,1758133845583,-606.43,0.00024447,2]
[385920053,1758133845593,-400.0,0.00024447,2]
[385920054,1758133845602,-400.0,0.00024447,2]
[385920055,1758133845612,-513.62,0.00024447,2]
[385920056,1758133845622,-400.0,0.00024447,2]
[385920057,1758133845632,-400.0,0.00024447,2]
[385920058,1758133845641,-400.0,0.00024447,2]
[385920059,1758133845651,-400.0,0.00024447,2]
[385920060,1758133845661,-400.0,0.00024447,2]
[385920061,1758133845671,-400.0,0.00024447,2]
[385920062,1758133845681,-488.46,0.00024447,2]
[385920063,1758133845691,-400.0,0.00024447,2]
[385920064,1758133845701,-410.58,0.00024447,2]
[385920065,1758133845710,-400.0,0.00024447,2]
[385920066,1758133845720,-400.0,0.00024447,2]
[385920067,1758133845731,-400.0,0.00024447,2]
[385920068,1758133845741,-437.2,0.00024447,2]
[385920069,1758133845751,-327.07896725,0.00024447,2]
[385920070,1758133845761,-400.0,0.00024447,2]
[385920071,1758133845770,-400.0,0.00024447,2]
[385920072,1758133845783,-400.0,0.00024447,2]
[385920073,1758133845795,-400.0,0.00024447,2]
[385920074,1758133845805,-488.61,0.00024447,2]
[385920075,1758133845816,-400.0,0.00024447,2]
[385920076,1758133845827,-400.0,0.00024447,2]
[385920077,1758133845838,-400.0,0.00024447,2]
[385920078,1758133845849,-400.0,0.00024447,2]
[385920079,1758133845859,-400.0,0.00024447,2]
[385920080,1758133845869,-400.0,0.00024447,2]
[385920081,1758133845879,-400.0,0.00024447,2]
[385920082,1758133845889,-400.0,0.00024447,2]
[385920083,1758133845900,-400.0,0.00024447,2]
[385920084,1758133845912,-400.0,0.00024447,2]
[385920085,1758133845923,-400.0,0.00024447,2]
[385920086,1758133845936,-400.0,0.00024447,2]
[385920087,1758133845947,-459.72,0.00024447,2]
[385920088,1758133845959,-529.36,0.00024447,2]
[385920089,1758133845970,-400.0,0.00024447,2]
[385920090,1758133845981,-400.0,0.00024447,2]
[385920091,1758133845993,-400.0,0.00024447,2]
[385920092,1758133846004,-400.0,0.00024447,2]
[385920093,1758133846015,-519.15,0.00024447,2]
[385920094,1758133846026,-400.0,0.00024447,2]
[385920095,1758133846048,-400.0,0.00024447,2]
[385920096,1758133846062,-488.28,0.00024447,2]
[385920098,1758133846073,-400.0,0.00024447,2]
[385920100,1758133846084,-400.0,0.00024447,2]
[385920102,1758133846094,-418.89,0.00024447,2]
[385920104,1758133846105,-400.0,0.00024447,2]
[385920105,1758133846116,-884.88,0.00024447,2]
[385920106,1758133846126,-558.29,0.00024447,2]
[385920108,1758133846137,-462.66,0.00024447,2]
[385920109,1758133846148,-432.41,0.00024447,2]
[385920110,1758133846159,-400.0,0.00024447,2]
[385920111,1758133846170,-659.27,0.00024447,2]
[385920112,1758133846181,-539.06,0.00024447,2]
[385920113,1758133846192,-620.37,0.00024447,2]
[385920114,1758133846203,-586.0,0.00024447,2]
[385920115,1758133846214,-599.57,0.00024447,2]
[385920116,1758133846224,-462.74,0.00024447,2]
[385920117,1758133846234,-411.42,0.00024447,2]
[385920119,1758133846246,-400.0,0.00024447,2]
[385920121,1758133846258,-400.0,0.00024447,2]
[385920123,1758133846268,-1122.2,0.00024447,2]
[385920125,1758133846277,-400.0,0.00024447,2]
[385920127,1758133846291,-510.63,0.00024447,2]
[385920129,1758133846301,-400.0,0.00024447,2]
[385920131,1758133846310,-474.35,0.00024447,2]
[385920133,1758133846320,-400.0,0.00024447,2]
[385920135,1758133846333,-400.0,0.00024447,2]
[385920137,1758133846342,-400.0,0.00024447,2]
[385920139,1758133846352,-400.0,0.00024447,2]
[385920141,1758133846362,-466.59,0.00024447,2]
[385920143,1758133846371,-881.4,0.00024447,2]
[385920145,1758133846380,-400.0,0.00024447,2]
[385920147,1758133846390,-400.0,0.00024447,2]
[385920149,1758133846399,-400.0,0.00024447,2]
[385920151,1758133846408,-680.89,0.00024447,2]
[385920153,1758133846418,-400.0,0.00024447,2]
[385920155,1758133846427,-400.0,0.00024447,2]
[385920157,1758133846437,-157.144396,0.00024447,2]
[385920159,1758133846446,-202.56637,0.00024447,2]
[385920161,1758133846456,-630.4,0.00024447,2]
[385920163,1758133846466,-1728.21,0.00024447,2]
[385920165,1758133846476,-400.0,0.00024447,2]
[385920167,1758133846486,-400.0,0.00024447,2]
[385920170,1758133846496,-474.29,0.00024447,2]
[385920172,1758133846506,-400.0,0.00024447,2]
[385920174,1758133846515,-400.0,0.00024447,2]
[385920176,1758133846524,-400.0,0.00024447,2]
[385920178,1758133846536,-400.0,0.00024447,2]
[385920180,1758133846546,-400.0,0.00024447,2]
[385920182,1758133846556,-598.11,0.00024447,2]
[385920184,1758133846566,-400.0,0.00024447,2]
[385920186,1758133846576,-435.93,0.00024447,2]
[385920188,1758133846586,-818.22,0.00024447,2]
[385920190,1758133846595,-400.0,0.00024447,2]
[385920191,1758133846604,-400.0,0.00024447,2]
[385920192,1758133846614,-1630.39,0.00024447,2]
[385920193,1758133846623,-550.79,0.00024447,2]
[385920195,1758133846633,-400.0,0.00024447,2]
[385920197,1758133846644,-400.0,0.00024447,2]
[385920199,1758133846653,-400.0,0.00024447,2]
[385920201,1758133846663,-400.0,0.00024447,2]
[385920203,1758133846673,-400.0,0.00024447,2]
[385920205,1758133846682,-400.0,0.00024447,2]
[385920206,1758133846692,-400.0,0.00024447,2]
[385920207,1758133846701,-1227.96,0.00024447,2]
[385920208,1758133846711,-400.0,0.00024447,2]
[385920209,1758133846720,-400.0,0.00024447,2]
[385920210,1758133846730,-400.0,0.00024447,2]
[385920211,1758133846739,-518.01,0.00024447,2]
[385920212,1758133846749,-208.32,0.00024447,2]
[385920213,1758133846759,-400.0,0.00024447,2]
[385920214,1758133846768,-409.18697314,0.00024447,2]
[385920215,1758133846778,-400.0,0.00024447,2]
[385920216,1758133846789,-508.38,0.00024447,2]
[385920217,1758133846798,-400.0,0.00024447,2]
[385920218,1758133846808,-644.12,0.00024447,2]
[385920219,1758133846817,-400.0,0.00024447,2]
[385920220,1758133846826,-400.0,0.00024447,2]
[385920221,1758133846835,-408.92232198,0.00024447,2]
[385920222,1758133846845,-1104.63,0.00024447,2]
[385920223,1758133846855,-1500.0,0.00024468,2]
[385920224,1758133846864,-1100.0,0.000245,8]
[385920225,1758133846874,-523.16,0.000245,2]
[385920226,1758133846883,-167.55,0.00024533,2]
[385920227,1758133846892,-1242.06598557,0.00024576,2]
[385920228,1758133846902,-1032.12667672,0.00024584,10]
[385920229,1758133846911,-400.0,0.00024584,2]
[385920230,1758133846921,-400.0,0.00024584,2]
[385920231,1758133846931,-400.0,0.00024584,2]
[385920232,1758133846942,-400.96640645,0.00024584,2]
[385920233,1758133846952,-400.0,0.00024584,2]
[385920234,1758133846962,-400.0,0.00024584,2]
[385920235,1758133846971,-400.0,0.00024584,2]
[385920236,1758133846981,-400.0,0.00024584,2]
[385920237,1758133846990,-400.0,0.00024584,2]
[385920238,1758133846999,-400.0,0.00024584,2]
[385920239,1758133847009,-408.49141288,0.00024584,2]
[385920240,1758133847019,-400.0,0.00024584,2]
[385920241,1758133847028,-400.0,0.00024584,2]
[385920242,1758133847040,-400.0,0.00024584,2]
[385920243,1758133847049,-402.61523473,0.00024584,2]
[385920244,1758133847059,-400.0,0.00024584,2]
[385920245,1758133847068,-400.0,0.00024584,2]
[385920246,1758133847077,-400.0,0.00024584,2]
[385920247,1758133847086,-400.0,0.00024584,2]
[385920248,1758133847096,-400.0,0.00024584,2]
[385920249,1758133847105,-400.0,0.00024584,2]
[385920250,1758133847114,-401.92707231,0.00024584,2]
[385920251,1758133847123,-400.0,0.00024584,2]
[385920252,1758133847133,-400.0,0.00024584,2]
[385920253,1758133847142,-401.43526523,0.00024584,2]
[385920254,1758133847152,-400.0,0.00024584,2]
[385920255,1758133847161,-400.0,0.00024584,2]
[385920256,1758133847171,-400.0,0.00024584,2]
[385920257,1758133847180,-400.0,0.00024584,2]
[385920258,1758133847190,-400.0,0.00024584,2]
[385920259,1758133847199,-400.0,0.00024584,2]
[385920260,1758133847209,-400.0,0.00024584,2]
[385920261,1758133847219,-400.0,0.00024584,2]
[385920262,1758133847229,-542.3878559,0.00024584,2]
[385920263,1758133847238,-400.0,0.00024584,2]
[385920264,1758133847248,-502.09273062,0.00024584,2]
[385920265,1758133847257,-400.0,0.00024584,2]
[385920266,1758133847266,-400.0,0.00024584,2]
[385920267,1758133847276,-401.908826,0.00024584,2]
[385920268,1758133847288,-400.0,0.00024584,2]
[385920269,1758133847298,-400.0,0.00024584,2]
[385920270,1758133847307,-401.82601991,0.00024584,2]
[385920271,1758133847318,-1000.0,0.00024584,2]
[385920272,1758133847329,-400.0,0.00024584,2]
[385920273,1758133847339,-400.0,0.00024584,2]
[385920274,1758133847349,-400.0,0.00024584,2]
[385920275,1758133847358,-401.99127451,0.00024584,2]
[385920276,1758133847367,-400.0,0.00024584,2]
[385920277,1758133847377,-400.89986747,0.00024584,2]
[385920278,1758133847387,-400.0,0.00024584,2]
[385920279,1758133847400,-402.51386764,0.00024584,2]
[385920280,1758133847414,-277.41643197,0.00024584,2]
[385920281,1758133847426,-400.0,0.00024584,2]
[385920282,1758133847436,-400.0,0.00024584,2]
[385920283,1758133847450,-400.97196716,0.00024584,2]
[385920284,1758133847467,-402.75026436,0.00024584,2]
[385920285,1758133847477,-400.95851595,0.00024584,2]
[385920286,1758133847486,-405.78588919,0.00024584,2]
[385920287,1758133847495,-400.0,0.00024584,2]
[385920288,1758133847504,-401.50142446,0.00024584,2]
[385920289,1758133847515,-400.0,0.00024584,2]
[385920290,1758133847524,-400.0,0.00024584,2]
[385920291,1758133847536,-400.0,0.00024584,2]
[385920292,1758133847545,-400.0,0.00024584,2]
[385920293,1758133847556,-400.0,0.00024584,2]
[385920294,1758133847566,-400.0,0.00024584,2]
[385920295,1758133847576,-400.0,0.00024584,2]
[385920296,1758133847586,-401.88315514,0.00024584,2]
[385920297,1758133847596,-400.0,0.00024584,2]
[385920298,1758133847605,-400.0,0.00024584,2]
[385920299,1758133847615,-453.4,0.00024584,2]
[385920300,1758133847624,-400.05506371,0.00024584,2]
[385920301,1758133847634,-365.3333,0.00024584,2]
[385920302,1758133847955,-400.47739631,0.00024584,2]
[385920303,1758133847965,-706.21,0.00024584,2]